[Event "Portuguese Rapid-ch 2022"]
[Site "Viseu"]
[Date "2022.06.11"]
[Round "6.6"]
[White "Ribeiro, Gustavo"]
[Black "Ferreira, Jorge Viterbo"]
[Result "0-1"]
[ECO "A13"]
[WhiteElo "1867"]
[BlackElo "2512"]
[Annotator "TA"]
[PlyCount "76"]
[EventDate "2022.06.09"]
[EventType "rapid"]
[EventCountry "POR"]
[SourceTitle "playchess.com"]
[Source "ChessBase"]
[SourceQuality "1"]
[TimeControl "600+5"]

{[%evp 15,76,-5,-12,-24,-27,-24,-24,-46,-52,-49,-40,-113,-105,-110,-125,-113,-104,-105,-102,-125,-123,-134,-131,-131,-131,-125,-126,-152,-149,-143,-146,-249,-204,-206,-203,-226,-219,-210,-199,-279,-285,-352,-346,-346,-319,-313,-301,-314,-322,-511,-503,-723,-695,-809,-815,-872,-862,-1062,-1021,-1062,-1031,-5631,-5277]} 1. c4 {[%emt 0:00:02]} e6 {[%emt 0:00:01]} 2. g3 {[%emt 0:00:02]} d5 {[%emt 0:00:02]} 3. cxd5 {[%emt 0:00:03]} exd5 {[%emt 0:00:02]} 4. Bg2 {[%emt 0:00:02]} Nf6 {[%emt 0:00:06]} 5. d4 {[%emt 0:00:06]} c6 {[%emt 0:00:03]} 6. Nf3 {[%emt 0:00:02]} Bf5 {[%emt 0:00:04]} 7. Nc3 {[%emt 0:00:07]} h6 {[%emt 0:00:04]} 8. O-O {[%emt 0:00:18]} Nbd7 {[%emt 0:00:03]} 9. Re1 {[%emt 0:00:03] D11: Slav Defence: 3 Nf3 sidelines and 3...Nf6 4 e3 Bg4.} Be7 {[%emt 0:00:07]} 10. Nh4 {[%emt 0:00:18]} Bh7 {[%emt 0:00:03] [#]} 11. Qb3 $146 {[%emt 0:00:29] Black has an edge.} ({Predecessor:} 11. e4 dxe4 12. Nxe4 O-O 13. Nc3 Nb6 14. Bh3 Re8 15. Nf5 Bf8 16. Rxe8 Qxe8 17. Qf3 {½-½ (24) Miladinovic,I (2555)-Zvjaginsev,V (2600) Tivat 1995}) 11... Qb6 {[%emt 0:00:15]} 12. Qxb6 {[%emt 0:00:56]} axb6 {[%emt 0:00:06][%cal Ba7b6,Bb6b5,Bb5b4][%mdl 32]} 13. Bh3 {[%emt 0:00:05] [#]} (13. Bd2 $15) 13... g5 $1 $17 {[%emt 0:01:23]} 14. Bxd7+ {[%emt 0:00:41]} Kxd7 {[%emt 0:00:56]} 15. Nf3 {[%emt 0:00:11]} b5 {[%emt 0:00:24]} 16. Ne5+ {[%emt 0:00:28]} Ke6 {[%emt 0:00:08]} 17. f4 {[%emt 0:00:05]} b4 {[%emt 0:00:12]} 18. Nd1 {[%emt 0:00:01]} Ne4 {[%emt 0:01:19]} 19. Nf2 {[%emt 0:00:08]} Nxf2 {[%emt 0:00:12] Active counter play!} 20. Kxf2 {[%emt 0:00:03]} Ra7 {[%emt 0:00:38]} 21. fxg5 {[%emt 0:01:57]} hxg5 {[%emt 0:00:06]} 22. Nf3 {[%emt 0:00:03]} f6 {[%emt 0:00:50]} 23. Nd2 {[%emt 0:00:56]} (23. h4 $17 {was called for.}) 23... Bg6 {[%emt 0:01:12]} 24. Kg1 {[%emt 0:01:35]} Rha8 {[%emt 0:00:06]} 25. e4 {[%emt 0:00:06]} dxe4 {[%emt 0:00:15]} 26. Nxe4 {[%emt 0:00:01]} Kf7 {[%emt 0:00:03]} 27. Nc5 {[%emt 0:00:22]} (27. Kg2 {was necessary.}) 27... b6 $19 {[%emt 0:00:09]} ({Stronger than} 27... Rxa2 28. Rxa2 Rxa2 29. Nxb7 $17) 28. Nb3 {[%emt 0:00:13]} Rxa2 {[%emt 0:00:07]} 29. Rxa2 {[%emt 0:00:23]} Rxa2 {[%emt 0:00:02]} 30. Nd2 {[%emt 0:00:21]} Bd3 {[%emt 0:00:42]} 31. Re3 {[%emt 0:00:19]} Bb5 {[%emt 0:00:12]} 32. Ne4 {[%emt 0:00:07]} (32. h4 {was worth a try.}) 32... f5 {[%emt 0:00:33][%cal Bf6f5,Bf5f4][%mdl 32] Black is clearly winning.} 33. Nf2 {[%emt 0:00:23]} Bf6 {[%emt 0:00:13]} 34. Kg2 {[%emt 0:01:08]} Bxd4 {[%emt 0:00:56]} 35. Rf3 {[%emt 0:00:02]} Kg6 {[%emt 0:00:15] [#] And now ...c5 would win.} 36. g4 {[%emt 0:00:38]} f4 {[%emt 0:00:29]} 37. h4 {[%emt 0:00:03]} c5 {[%emt 0:00:03]} 38. Kg1 {[%emt 0:00:19]} Ra1 {[%emt 0:00:03] Black took control after the opening.  Weighted Error Value: White=0.70/Black=0.03 (flawless)} 0-1

[Event "Portuguese Rapid-ch 2022"]
[Site "Viseu"]
[Date "2022.06.11"]
[Round "6.7"]
[White "Ferreira, Luis Pedro"]
[Black "Santos, Antonio P"]
[Result "0-1"]
[ECO "A01"]
[WhiteElo "2183"]
[BlackElo "2182"]
[Annotator "TA"]
[PlyCount "64"]
[EventDate "2022.06.09"]
[EventType "rapid"]
[EventCountry "POR"]
[SourceTitle "playchess.com"]
[Source "ChessBase"]
[SourceQuality "1"]
[TimeControl "600+5"]

{[%evp 13,64,18,24,-46,-54,-56,-48,-52,0,-102,-108,-562,-556,-462,-124,-1005,-1000,-990,-264,-260,-264,-305,-299,-468,-379,-356,-345,-285,-127,-128,-136,-537,-532,-539,-534,-532,-518,-516,-513,-802,-812,-802,-800,-786,-787,-801,-796,-782,-760,-920,-847,-29978,-6325]} 1. b3 {[%emt 0:00:04]} e5 {[%emt 0:00:03]} 2. Bb2 {[%emt 0:00:01]} Nc6 {[%emt 0:00:02]} 3. e3 {[%emt 0:00:01]} d5 {[%emt 0:00:05]} 4. Bb5 {[%emt 0:00:02]} Bd6 {[%emt 0:00:01]} 5. f4 {[%emt 0:00:03]} Qh4+ {[%emt 0:00:03]} 6. g3 {[%emt 0:00:02]} Qe7 {[%emt 0:00:02]} 7. Nf3 {[%emt 0:00:12]} f6 {[%emt 0:00:38]} 8. fxe5 {[%emt 0:00:06] A01: Nimzowitsch-Larsen Opening.} (8. Nc3 $11) 8... fxe5 $15 {[%emt 0:00:03]} 9. Bxc6+ bxc6 {[%emt 0:00:02]} 10. Nxe5 $1 {[%emt 0:00:09] Black must now prevent Qh5+. Black is slightly better.} Nf6 {[%emt 0:00:01] Inhibits Qh5+.} (10... Qg5 $1 $15 11. Nf3 (11. Nxc6 $2 Ne7 $19) 11... Qg6) 11. d4 {[%emt 0:00:33]} (11. Nxc6 $11 Qd7 12. Bxf6) 11... O-O $17 {[%emt 0:00:13]} 12. Nd2 $2 {[%emt 0:00:14][%mdl 8192]} (12. Nc3 $17) 12... Bxe5 $19 {[%emt 0:00:17]} 13. dxe5 {[%emt 0:00:03] [#]} Ng4 {[%emt 0:00:02] [#]} (13... Bg4 $1 $19 {[%cal Rg4d1]} 14. Qc1 Nd7) 14. Nf3 $146 {[%emt 0:00:48][%mdl 8192]} (14. Qe2 $17) ({Predecessor:} 14. Qe2 Rf2 15. Qd3 Bf5 16. Qd4 c5 17. Qxd5+ Be6 18. Qxa8+ Rf8 19. Qc6 Nxe3 20. Qe4 {0-1 (62) Bachmann,A (2519)-Melkumyan,H (2534) ICC INT 2008}) 14... Nxe3 {[%emt 0:00:08]} 15. Qe2 {[%emt 0:00:01]} Bg4 $2 {[%emt 0:00:12]} (15... Qb4+ 16. c3 Qe4) 16. Qxe3 {[%emt 0:00:08] Strongly threatening 0-0.} Rxf3 {[%emt 0:03:28]} 17. Qd4 {[%emt 0:00:05]} Qg5 {[%emt 0:00:06]} 18. Bc1 {[%emt 0:00:21] Inhibits Re3+.} (18. Rf1 {is the only way for White.} Re3+ 19. Kf2) 18... Qg6 {[%emt 0:00:08]} 19. Rf1 {[%emt 0:00:49]} Rxf1+ {[%emt 0:00:24]} 20. Kxf1 {[%emt 0:00:02]} Rf8+ {[%emt 0:00:12]} (20... Bh3+ $19 {and Black stays clearly on top.} 21. Kg1 Qxc2) 21. Kg1 $17 {[%emt 0:00:41]} Bh3 $40 {[%emt 0:00:15][%csl Gh3][%cal Rf8f1][%mdl 128] Black wants a kill. Black is more active.} 22. Be3 $2 {[%emt 0:01:21][%mdl 8192]} (22. Ba3 $17 {is a better chance.} Qxc2 23. Qb2) 22... Qf5 $19 {[%emt 0:00:54][%cal Of5f1] ( -> ...Qf1+!)} ({Don't go for} 22... Qxc2 $2 23. Bf2 $19) 23. Bf4 {[%emt 0:00:27] [#]} g5 $1 {[%emt 0:00:57][%cal Bg7g5,Bg5f4][%mdl 32]} ({Not} 23... Qxc2 $2 24. Qd2 Qf5 25. Qe2 $17) 24. e6 {[%emt 0:02:09][%cal Be5e6,Be6e7][%mdl 32]} gxf4 {[%emt 0:00:02]} 25. e7 {[%emt 0:00:30]} Re8 {[%emt 0:00:02]} 26. Re1 {[%emt 0:01:23]} (26. Qxf4 $142 Qe6 27. Qg5+ Kh8 28. Rd1) 26... Qxc2 {[%emt 0:00:54][%csl Gh3][%cal Rc2g2]} 27. Qf2 {[%emt 0:00:17] Inhibits Qg2+.} Qxf2+ {[%emt 0:00:03]} 28. Kxf2 {[%emt 0:00:01]} Kf7 {[%emt 0:00:43]} 29. gxf4 {[%emt 0:00:09]} Rxe7 {[%emt 0:00:02]} 30. Rc1 {[%emt 0:00:06]} Bd7 {[%emt 0:00:03]} 31. Rc5 {[%emt 0:00:01]} Ke6 {[%emt 0:00:32]} 32. Ke3 {[%emt 0:00:21]} Kd6+ {[%emt 0:00:04] Weighted Error Value: White=1.56/Black=0.46} 0-1

[Event "Portuguese Rapid-ch 2022"]
[Site "Viseu"]
[Date "2022.06.11"]
[Round "6.8"]
[White "Fidalgo, Andre Neves"]
[Black "Monteiro, Paulo Alexandre G"]
[Result "1-0"]
[ECO "A62"]
[WhiteElo "2261"]
[BlackElo "1983"]
[Annotator "TA"]
[PlyCount "69"]
[EventDate "2022.06.09"]
[EventType "rapid"]
[EventCountry "POR"]
[SourceTitle "playchess.com"]
[Source "ChessBase"]
[SourceQuality "1"]
[TimeControl "600+5"]

{[%evp 22,69,-29,-32,0,0,0,0,0,-33,24,16,38,-27,8,-72,46,27,5,0,0,5,46,40,17,8,245,230,249,227,302,77,106,84,172,231,207,204,212,202,637,631,847,333,844,844,12850,6223,5397,5296]} 1. d4 {[%emt 0:00:03]} Nf6 {[%emt 0:00:02]} 2. c4 {[%emt 0:00:01]} e6 {[%emt 0:00:02]} 3. g3 {[%emt 0:00:02]} c5 {[%emt 0:00:04]} 4. d5 {[%emt 0:00:02]} exd5 {[%emt 0:00:03]} 5. cxd5 {[%emt 0:00:01]} d6 {[%emt 0:00:03]} 6. Nc3 {[%emt 0:00:02]} g6 {[%emt 0:00:02]} 7. Bg2 {[%emt 0:00:02]} Bg7 {[%emt 0:00:02]} 8. Nf3 {[%emt 0:00:01]} O-O {[%emt 0:00:03]} 9. O-O {[%emt 0:00:02]} Re8 {[%emt 0:00:11]} 10. Bf4 {[%emt 0:00:02]} Na6 {[%emt 0:00:16] 10...Bf5 is becoming the main line.} 11. h3 {[%emt 0:00:29]} Nc7 {[%emt 0:00:25]} 12. a4 {[%emt 0:00:12]} Ne4 {[%emt 0:00:29] A62: Modern Benoni: Fianchetto Variation without early ...Nbd7.} 13. Rc1 {[%emt 0:02:29] [#]} Nxc3 $146 {[%emt 0:02:15]} ({Predecessor:} 13... Bf5 14. g4 Nxc3 15. bxc3 Be4 16. c4 Bb2 17. Qb3 Bxc1 18. Bxc1 a6 19. a5 Rb8 20. Bb2 {1-0 (31) Mikhalevski,V (2607)-Kraai,J (2509) Edmonton 2009}) 14. bxc3 {[%emt 0:00:02]} b5 {[%emt 0:00:16] The position is equal.} 15. Nd2 {[%emt 0:00:26]} f5 {[%emt 0:03:28] Prevents Ne4.} (15... g5 $15 16. Be3 Rb8) 16. e4 {[%emt 0:00:09]} Rb8 {[%emt 0:00:26]} 17. exf5 {[%emt 0:00:03]} (17. Re1 $14) 17... Bxf5 {[%emt 0:00:01]} (17... g5 $5 {[%cal Rg5f4]} 18. Bxd6 Qxd6 $15) 18. c4 {[%emt 0:02:02]} (18. Qf3 $11 {keeps the balance.}) 18... Bd3 {[%emt 0:01:11] [#]} ({Black should try} 18... g5 $17 19. Qh5 Bg6 20. Qxg5 Qxg5 21. Bxg5 bxa4) 19. cxb5 $1 {[%emt 0:00:32]} Bxf1 {[%emt 0:00:03]} 20. Qxf1 {[%emt 0:00:01]} Be5 {[%emt 0:00:28]} 21. Bh6 {[%emt 0:00:39]} a6 {[%emt 0:00:22][%cal Ra6b5]} 22. Rb1 {[%emt 0:00:35]} ({Of course not} 22. bxa6 Rb4 $11) 22... axb5 {[%emt 0:00:22]} 23. axb5 {[%emt 0:00:01][%cal Ba4b5,Bb5b6][%mdl 32] Strongly threatening b6.} Qd7 $2 {[%emt 0:00:28]} (23... Bg7 $2 24. Bxg7 Kxg7 25. b6 $18) (23... Qf6 $11 {and Black is okay.} 24. Ne4 Qe7) 24. b6 $18 {[%emt 0:00:03][%mdl 1024] White has strong compensation.} Na8 {[%emt 0:00:02] [#]} 25. Nc4 {[%emt 0:00:01]} Rb7 {[%emt 0:00:28]} 26. Qd1 $2 {[%emt 0:00:55]} (26. h4 $18) 26... Bd4 $16 {[%emt 0:00:27][%cal Oa8b6]} 27. Bf4 {[%emt 0:00:06] A strong pair of Bishops.} Reb8 {[%emt 0:00:13]} (27... g5 $16 {is a better defense.} 28. Bxg5 (28. Bxd6 Nxb6 29. Na5 Ra7 $17) 28... Nxb6 29. Rxb6 Rxb6 30. Nxb6 Qf5) 28. Bxd6 $18 {[%emt 0:02:01]} ({And not} 28. Nxd6 Rxb6 29. Rxb6 Nxb6 $11) 28... Nxb6 {[%emt 0:00:02]} 29. Bxb8 {[%emt 0:00:02]} Nxc4 {[%emt 0:00:01] [#]} 30. Bf4 $1 {[%emt 0:00:02] Rxb7 is the strong threat.} Ra7 {[%emt 0:00:13]} (30... Kg7 31. Rxb7 Qxb7) 31. Qe2 {[%emt 0:00:10]} Nd6 {[%emt 0:00:03]} 32. Rb6 $2 {[%emt 0:00:08]} (32. Rb8+ Kf7 33. Bh6) 32... Ra1+ $2 {[%emt 0:00:03]} (32... Qe8 33. Qe6+ Qxe6 34. dxe6 Nf5) 33. Kh2 {[%emt 0:00:02] White is clearly winning.} Nf5 {[%emt 0:00:05]} 34. d6 {[%emt 0:00:18] Threatening mate with Rb7.} Kg7 {[%emt 0:00:08]} 35. Rb7 {[%emt 0:00:02] Weighted Error Value: White=0.59/Black=0.73} 1-0

[Event "Portuguese Rapid-ch 2022"]
[Site "Viseu"]
[Date "2022.06.11"]
[Round "7.1"]
[White "Veiga, Jose Francisco R P N"]
[Black "Martins, Bruno Andre Leite"]
[Result "1/2-1/2"]
[ECO "B10"]
[WhiteElo "2377"]
[BlackElo "2327"]
[Annotator "TA"]
[PlyCount "35"]
[EventDate "2022.06.09"]
[EventType "rapid"]
[EventCountry "POR"]
[SourceTitle "playchess.com"]
[Source "ChessBase"]
[SourceQuality "1"]
[TimeControl "600+5"]

{[%evp 10,22,18,26,25,0,10,0,35,37,39,39,41,24,36]} 1. e4 c6 2. Nc3 d5 3. Nf3 dxe4 4. Nxe4 Nf6 5. Qe2 Nxe4 6. Qxe4 Qd5 {B11: Caro-Kann: Two Knights Variation.} 7. Qh4 Qe6+ 8. Be2 Qg4 {Inhibits Qf4.} 9. Qg3 Qxg3 10. hxg3 g6 11. d4 Bg7 {[#] Black did not feel at home in the position after the opening.  Weighted Error Value: White=0.11 (very precise) /Black=0.07 (flawless)} {Predecessor:} 12. Bh6 $146 Bf6 13. Ne5 Be6 14. O-O-O Nd7 15. f4 Rg8 16. g4 Rd8 17. c4 Bxe5 18. fxe5 {½-½ (46) Bacrot,E (2708)-Topalov,V (2749) Paris 2017} 1/2-1/2

[Event "Portuguese Rapid-ch 2022"]
[Site "Viseu"]
[Date "2022.06.11"]
[Round "7.2"]
[White "Sousa, Andre Ventura"]
[Black "Fidalgo, Andre Neves"]
[Result "1-0"]
[ECO "B51"]
[WhiteElo "2420"]
[BlackElo "2261"]
[Annotator "TA"]
[PlyCount "79"]
[EventDate "2022.06.09"]
[EventType "rapid"]
[EventCountry "POR"]
[SourceTitle "playchess.com"]
[Source "ChessBase"]
[SourceQuality "1"]
[TimeControl "600+5"]

{[%evp 15,79,39,62,38,130,66,194,193,187,140,231,232,233,218,217,231,216,225,215,225,234,236,260,196,257,248,331,308,470,294,370,350,333,222,247,246,289,281,304,327,317,312,375,285,344,0,283,260,254,109,283,242,255,272,278,272,262,211,397,373,635,483,665,633,808,780]} 1. e4 c5 2. Nf3 d6 3. Bb5+ Nd7 4. d4 cxd4 5. Qxd4 Ngf6 6. Nc3 a6 7. Bxd7+ Bxd7 8. Bg5 Bc6 9. O-O-O {B51: Sicilian: Moscow Variation (3 Bb5+) without 3...Bd7.} (9. Bxf6 $5 gxf6 10. O-O $11) 9... e5 (9... Nd7 $14) 10. Qd3 {[#] White is more active.} (10. Nxe5 dxe5 11. Qxe5+ Qe7 $17) ({Better is} 10. Qc4 $16) 10... Qa5 $146 (10... Rc8 $14) ({Predecessor:} 10... Rc8 11. Kb1 h6 12. Bxf6 Qxf6 13. Nd5 Qe6 14. Nb6 Rd8 15. c4 Be7 16. Nd2 O-O {0-1 (66) Nur Mukhametova,A (2213)-Nechaeva,M (2379) Moscow 2020}) 11. Bxf6 $18 {White is clearly better.} gxf6 12. Kb1 (12. Nh4 $18) 12... Be7 (12... Qc5 $16 13. g3 O-O-O) 13. Nh4 O-O-O 14. Nf5 Bf8 15. Nd5 Bxd5 16. Qxd5 Qxd5 17. Rxd5 Rg8 18. g3 Kd7 19. c4 Ke6 (19... Rc8 $142 20. b3 Rc5) 20. Rhd1 b6 21. a4 Be7 (21... Kd7 {was called for.} 22. f3 Be7) 22. R1d3 {Hoping for a5.} a5 23. Rb5 Rb8 24. Ne3 {Rdb3 is the strong threat.} Rgc8 25. Kc2 Rc5 26. b3 Rxb5 27. cxb5 {[%mdl 4096] Endgame KRB-KRN} (27. axb5 $6 Rb7 28. g4 h6 $18) 27... Rc8+ 28. Kb2 h5 29. Nf5 Kd7 30. Ne3 $2 {[#]} (30. Rc3 $18 {Black must now prevent Rxc8.} Rxc3 31. Kxc3) 30... Rc5 {[%mdl 8192]} (30... Ke6 $11 {and Black has nothing to worry.}) 31. Nc4 Kc7 32. Kc3 (32. f3 $18 {and White stays clearly on top.}) 32... Bf8 $2 (32... f5 $16 {keeps fighting.} 33. Rf3 f4) 33. h4 f5 34. Rf3 (34. exf5 $2 d5 35. f6 dxc4 36. bxc4 e4 $19) 34... f4 35. gxf4 exf4 36. Rxf4 Bg7+ $2 {[#]} (36... f5 {was necessary.} 37. e5 (37. exf5 $2 d5 $19) (37. Rxf5 Rxf5 38. exf5 d5 $16) 37... d5) 37. Kd3 f6 (37... f5 38. e5 (38. exf5 Bf6 $16) (38. Rxf5 Rxf5 39. exf5 d5 $16) 38... d5) 38. Ne3 {White is clearly winning.} f5 39. Nd5+ Kb7 40. Rxf5 {Weighted Error Value: White=0.46/Black=0.82} 1-0

[Event "Portuguese Rapid-ch 2022"]
[Site "Viseu"]
[Date "2022.06.11"]
[Round "7.3"]
[White "Ferreira, Jorge Viterbo"]
[Black "Fernandes, Antonio"]
[Result "1-0"]
[ECO "A45"]
[WhiteElo "2512"]
[BlackElo "2314"]
[Annotator "TA"]
[PlyCount "59"]
[EventDate "2022.06.09"]
[EventType "rapid"]
[EventCountry "POR"]
[SourceTitle "playchess.com"]
[Source "ChessBase"]
[SourceQuality "1"]
[TimeControl "600+5"]

{[%evp 9,59,35,29,24,47,37,37,40,77,63,77,21,21,9,83,83,208,220,213,200,205,170,251,188,238,211,183,145,141,136,129,66,240,217,367,322,326,329,350,348,347,342,633,379,768,308,575,556,766,769,672,143]} 1. d4 {[%emt 0:00:01]} Nf6 {[%emt 0:00:02]} 2. Bf4 {[%emt 0:00:02]} d5 {[%emt 0:01:15]} 3. e3 {[%emt 0:00:02]} c6 {[%emt 0:00:08]} 4. c4 {[%emt 0:00:07][%cal Bc2c4,Bc4c5][%mdl 32]} Bf5 {[%emt 0:00:55]} 5. Nc3 {[%emt 0:00:04]} e6 {[%emt 0:00:02]} 6. Qb3 {[%emt 0:00:02] D10: Slav Defence: 3 cxd5 (without early Nf3) and 3 Nc3.} Qb6 {[%emt 0:05:54] 6...Qc8 is more advanced technology.} 7. c5 {[%emt 0:00:03]} Qxb3 {[%emt 0:00:02]} 8. axb3 {[%emt 0:00:02] White is slightly better.} Nbd7 {[%emt 0:00:03]} 9. b4 {[%emt 0:00:06]} Nh5 10. Bg3 {[%emt 0:00:05]} (10. Bc7 $1 $16) 10... Nxg3 $11 11. hxg3 {[%emt 0:00:05] [#]} b5 $146 (11... Be7 $11 {remains equal.}) ({Predecessor:} 11... Be7 12. b5 O-O 13. Nf3 e5 14. Kd2 Bf6 15. Ra4 Rfe8 16. Be2 exd4 17. exd4 Nf8 {0-1 (111) Trost,E (2342)-Rytenko,V (2362) Chess.com INT 2022}) 12. Nf3 $16 {[%emt 0:00:05]} f6 {[#]} (12... Kd8 $16) 13. Nh4 $1 $18 {[%emt 0:00:05]} Kf7 14. Nxf5 {[%emt 0:00:05]} exf5 15. Kd2 {[%emt 0:00:05]} g6 (15... Be7 $142 16. Bd3 g6) 16. Be2 {[%emt 0:00:05] Black must now prevent Bf3.} Be7 (16... a6 $142 17. Ra5 Nb8) 17. Ra2 {[%emt 0:00:05]} a6 18. Rha1 {[%emt 0:00:05] Threatens to win with Bf3.} Nb8 {[#]} 19. Nxb5 $1 {[%emt 0:00:05][%mdl 512] White is more active.} cxb5 20. Bxb5 {[%emt 0:00:05] aiming for Be2.} Rd8 $2 ({Black should play} 20... Ra7 $1 $14) 21. Bxa6 {[%emt 0:00:05]} Nc6 (21... Nxa6 {was necessary.} 22. Rxa6 Rab8) 22. Bb5 {[%emt 0:00:05]} Rxa2 23. Rxa2 {[%emt 0:00:05]} Nb8 24. Ra7 {[%emt 0:00:05]} Rc8 25. Ba4 {[%emt 0:00:05]} Nc6 $2 (25... Ke6 26. Kd3 h5) 26. Rb7 {[%emt 0:00:05]} Kf8 $2 (26... Nd8) 27. b5 {[%emt 0:00:05]} (27. Bxc6 $142 Rxc6 28. Rb8+ Kf7 29. b5) 27... Nb8 $2 (27... Na5 {was worth a try.}) 28. Bb3 {[%emt 0:00:05] White is clearly winning.} Ke8 29. Bxd5 {[%emt 0:00:05]} Rd8 {[#]} 30. Bc4 $2 {[%emt 0:00:05] Weighted Error Value: White=0.45/Black=0.64} (30. c6 $1 $18 {and White stays clearly on top.} Nd7 (30... Nxc6 31. bxc6) 31. cxd7+ Kf8 32. Kc3) 1-0

[Event "Portuguese Rapid-ch 2022"]
[Site "Viseu"]
[Date "2022.06.11"]
[Round "7.4"]
[White "Santos, Jose Guilherme B Lim"]
[Black "Rego, Pedro Filipe"]
[Result "1-0"]
[ECO "B32"]
[WhiteElo "2365"]
[BlackElo "2251"]
[Annotator "TA"]
[PlyCount "130"]
[EventDate "2022.06.09"]
[EventType "rapid"]
[EventCountry "POR"]
[SourceTitle "playchess.com"]
[Source "ChessBase"]
[SourceQuality "1"]
[TimeControl "600+5"]

{[%evp 17,130,43,48,43,39,26,41,0,21,18,21,0,0,20,35,31,54,67,63,58,79,82,72,-30,-6,-8,-15,-8,-12,-25,41,39,25,39,48,57,58,48,68,0,0,0,0,-36,-34,-27,175,168,168,168,198,199,251,242,256,227,238,135,84,0,251,253,221,235,196,0,302,291,302,297,289,290,302,291,419,411,568,568,602,601,600,593,590,539,478,-398,-399,-390,-387,-604,-593,-619,-619,-557,-536,-655,-655,-648,-648,-641,-633,-626,-619,-612,-604,-604,-604,-590,-590,-562,0,-460,0,0,0]} 1. e4 c5 2. Nf3 Nc6 3. d4 cxd4 4. Nxd4 e5 5. Nb5 a6 6. Nd6+ Bxd6 7. Qxd6 Qe7 8. Qd1 Nf6 9. Nc3 d6 10. Bg5 {B32: Sicilian: Löwenthal and Kalashnikov Variations.} Be6 11. Be2 h6 12. Be3 {White is slightly better.} (12. Bxf6 $5 Qxf6 13. Nd5 $11) 12... O-O 13. O-O Qc7 {[#]} 14. Qd2 $146 ({Predecessor:} 14. f4 exf4 15. Bxf4 Qb6+ 16. Kh1 Ne5 17. Qd2 Rac8 18. Rab1 Nfd7 19. Rfd1 Rc6 20. Nd5 Bxd5 21. exd5 {1-0 (60) Heil,S-Roeder,F Germany 1982}) 14... b5 15. f4 {Threatening f5.} exf4 16. Rxf4 Ne5 {[#]} 17. Rxf6 $1 gxf6 18. Bxh6 Rfe8 19. Rf1 b4 20. Qf4 Ng6 $11 (20... bxc3 {is a self mate.} 21. Qxf6 Qc5+ 22. Kh1) 21. Qxf6 {[%csl Gh6][%cal Rf6g7] The board is on fire.} Qc5+ 22. Rf2 {[%csl Gh6][%cal Rf6g7]} Qe5 {aiming for ...Qxf6.} 23. Qxe5 dxe5 (23... Nxe5 $11 24. Nd5 Bxd5 25. exd5 Rac8) 24. Nd5 $14 Bxd5 25. exd5 Rad8 26. Bc4 Rd6 27. Bd2 $36 {[%mdl 2048] White has some pressure. This bishop pair is nice.} a5 28. Be3 (28. c3 $14) 28... Rc8 $11 29. Bb3 Ne7 30. Bg5 Nxd5 31. Rd2 Rc5 (31... Rg6 $1 $11 32. Rxd5 Rxg5) 32. Be7 $1 $18 {[%mdl 64] Skewer} Nxe7 33. Rxd6 {[%mdl 4096] Endgame KRB-KRN} Kg7 34. g4 {Against Nf5} e4 (34... Rc7 $142 35. Kf2 Nc8) 35. Kf2 Rg5 36. h3 f5 37. Rd7 ({White should try} 37. Re6 $18 Ng6 38. gxf5 Rxf5+ 39. Ke3) 37... Kf6 $16 38. Rd6+ $2 (38. Kg3 $16 {Threatens to win with Rd6+.} fxg4 39. hxg4) 38... Kg7 $18 39. Re6 Ng6 40. gxf5 Rxf5+ 41. Kg3 $2 (41. Ke3 $18) 41... Rf3+ $2 {[%mdl 8192]} (41... Rg5+ $11 42. Kf2 Rh5 43. Rxe4 Rxh3) 42. Kg4 Re3 43. h4 {[%cal Bh3h4,Bh4h5][%mdl 32]} Re1 44. h5 Rg1+ 45. Kf5 Nh4+ (45... Nf8 {was worth a try.} 46. Rxe4 Kh6) 46. Kxe4 Re1+ 47. Kd5 Rd1+ 48. Kc5 Nf3 49. Rg6+ Kh7 50. Kb5 Rh1 51. Kxa5 $4 {[%mdl 8192]} (51. Bg8+ $18 Kh8 52. Kxa5) 51... Rxh5+ $19 52. Kxb4 Kxg6 53. a4 (53. Bc4 $142 Ne1 54. Kc3) 53... Kf6 54. a5 Nd4 55. Ba4 Ke7 56. a6 Kd6 57. a7 Rh8 58. Ka5 Kc7 59. c3 Ne6 60. Bb3 Nc5 61. Bd5 Nb7+ 62. Ka6 Rh6+ 63. Kb5 {[#]} Rh8 (63... Rb6+ $1 $19 64. Kc4 Ra6) 64. Ka6 $2 {[%mdl 8192] [#]} (64. b4 $11 {and White has nothing to worry.}) 64... Nc5+ $2 ({Better is} 64... Rf8 $1 $19 65. Kb5 (65. Bxb7 Rf6+ 66. Bc6 Rxc6+ 67. Kb5 Rb6+ 68. Kc4 Ra6 $19) (65. Bf7 Rd8) 65... Ra8) 65. Kb5 $11 Nb7 {[%mdl 32768] Quite a comeback for White.  Weighted Error Value: White=0.40/Black=0.40. Loss on time!?} 1-0